bitfinex-derivatives/quotes_ETHF0:USTF0_20251009
["timestamp","ask_amount","ask_price","bid_price","bid_amount"]
[1760005152054,0.4534,4336.5,4336.4,41.1235]
[1760005152356,0.6787,4336.5,4336.4,0.3235]
[1760005152560,0.6787,4336.2,4336.1,3.2078]
[1760005152756,0.4483,4335.9,4335.6,5.20712473]
[1760005152961,1.09375,4335.9,4335.6,3.5543]
[1760005153254,1.09375,4335.9,4335.6,3.2308]
[1760005154658,4.11354782,4335.9,4335.6,3.2078]
[1760005155854,4.11354782,4335.9,4335.3,0.3235]
[1760005157057,4.11354782,4335.9,4335.3,0.7386]
[1760005157552,4.11354782,4335.9,4335.3,0.3235]
[1760005157755,4.11354782,4335.9,4334.8,41.031]
[1760005157756,9.11354782,4335.9,4334.9,1.65282473]
[1760005157955,9.11354782,4335.9,4335.5,0.023]
[1760005159357,9.34454782,4335.9,4335.5,0.023]
[1760005159549,1.09378,4335.6,4335.5,0.023]
[1760005159856,4.25826848,4335.6,4335.5,0.023]
[1760005160056,0.4483,4334.7,4334.6,0.7668]
[1760005160353,0.6793,4334.7,4334.6,0.7668]
[1760005160560,0.68101109,4334.7,4334.6,0.76890285]
[1760005161159,0.45001109,4334.7,4334.6,0.76890285]
[1760005161354,0.45571109,4334.7,4334.6,0.76890285]
[1760005161560,0.68101109,4334.7,4334.6,0.76890285]
[1760005162753,0.91141109,4334.7,4334.6,0.32560285]
[1760005163054,0.91141109,4334.7,4334.6,0.00210285]
[1760005163257,3.85891724,4334.7,4334.6,0.00210285]
[1760005163757,3.85891724,4334.7,4334.6,0.32560285]
[1760005164348,3.85891724,4334.7,4334.0,25.0]
[1760005164349,0.4483,4334.1,4334.0,25.0]
[1760005164557,0.9097,4334.1,4334.0,25.0]
[1760005165464,3.91578184,4334.1,4334.0,25.54876855]
[1760005165655,0.9097,4334.1,4334.0,25.54876855]
[1760005166559,0.6793,4334.1,4334.0,25.68296855]
[1760005166860,0.4483,4334.1,4334.0,25.90306855]
[1760005167160,0.6793,4334.1,4334.0,25.90306855]
[1760005167356,0.223,4334.1,4334.0,25.90306855]
[1760005167658,0.4483,4334.6,4334.5,1.09608]
[1760005167858,0.5943,4334.6,4334.5,1.09608]
[1760005168755,0.6793,4334.6,4334.5,1.09608]
[1760005169160,0.4483,4334.6,4334.5,1.09608]
[1760005169351,0.4483,4334.6,4334.5,0.6809]
[1760005169556,0.6826,4334.4,4334.3,0.74749]
[1760005169759,0.6826,4334.4,4334.3,0.5556]
[1760005170352,0.6826,4334.1,4334.0,25.13626855]
[1760005170557,0.9136,4334.1,4334.0,25.00206855]
[1760005171855,4.34311727,4334.1,4334.0,25.00206855]
[1760005172361,4.11291727,4334.1,4334.0,25.69106855]
[1760005172658,0.6834,4334.1,4334.0,26.32449855]
[1760005173858,3.20951109,4334.7,4334.0,26.32449855]
[1760005173859,0.4524,4334.4,4334.3,0.9708]
[1760005174064,1.09859,4334.4,4334.3,1.189]
[1760005174666,0.6834,4334.4,4334.3,1.189]
[1760005174863,1.32879,4334.4,4334.3,0.3323]
[1760005175063,1.09782,4334.1,4334.0,25.46776855]
[1760005175463,0.86762,4334.1,4334.0,26.10629855]
[1760005175665,1.09782,4334.1,4334.0,26.10629855]
[1760005175971,0.5997,4334.3,4334.2,0.63851]
[1760005176158,1.0521,4334.3,4334.2,0.97081]
[1760005176358,4.21997739,4334.3,4334.2,0.5556]
[1760005176857,0.23,4334.6,4334.5,0.9072]
[1760005177057,0.4524,4334.6,4334.5,1.32238]
[1760005177264,0.6826,4334.6,4334.5,0.3323]
[1760005177458,0.4524,4334.6,4334.5,1.32238]
[1760005177663,0.00171109,4334.7,4334.6,1.18897]
[1760005178165,0.23171109,4334.7,4334.6,1.18897]
[1760005178566,0.45411109,4334.7,4334.6,0.7738]
[1760005179465,0.00171109,4334.7,4334.6,0.7738]
[1760005180071,0.45411109,4334.7,4334.6,0.7738]
[1760005180461,0.68431109,4334.7,4334.6,0.3323]
[1760005181162,0.41517,4334.6,4334.4,3.2078]
[1760005181361,0.41517,4334.6,4334.0,26.32449855]
[1760005181362,0.4524,4334.1,4334.0,26.32449855]
[1760005181762,0.23,4334.1,4334.0,26.32449855]
[1760005183069,0.00171109,4334.7,4334.6,0.7738]
[1760005183264,0.23171109,4334.7,4334.6,0.7738]
[1760005184570,0.64687109,4334.7,4334.6,0.7738]
[1760005185071,0.86817109,4334.7,4334.6,0.7738]
[1760005185374,0.86817109,4334.7,4334.6,1.18897]
[1760005185765,0.64687109,4334.7,4334.6,1.18897]
[1760005186872,0.41687109,4334.7,4334.6,1.18897]
[1760005187074,0.00171109,4334.7,4334.6,1.18897]
[1760005187269,0.21891109,4334.7,4334.6,1.18897]
[1760005188069,0.00171109,4334.7,4334.6,1.18897]
[1760005192578,0.00171109,4334.7,4334.6,1.41997]
[1760005192789,0.00171109,4334.7,4334.6,3.07279473]
[1760005192974,0.00171109,4334.7,4334.6,42.21997]
[1760005195384,0.1845,4335.5,4334.6,47.21997]
[1760005195683,0.63221,4336.3,4336.2,0.2116]
[1760005195882,0.85349,4336.6,4336.5,0.9083]
[1760005196075,0.2172,4336.6,4336.5,0.5595]
[1760005196275,0.4385,4336.6,4336.5,0.5595]
[1760005196485,0.44020238,4336.6,4336.5,0.5595]
[1760005196687,0.44020238,4336.6,4336.5,0.9083]
[1760005199591,0.45760238,4336.6,4336.5,0.9083]
[1760005200497,0.68780238,4336.6,4336.5,0.6967]
[1760005200792,0.68780238,4336.6,4336.5,0.4816]
[1760005201095,0.45760238,4336.6,4336.5,0.7037]
[1760005201288,0.45760238,4336.6,4336.5,0.9349]
[1760005201595,0.00170238,4336.6,4336.5,0.9349]
[1760005203595,0.22460238,4336.6,4336.5,0.9349]
[1760005204997,0.63958238,4336.6,4336.5,0.9349]
[1760005205190,1.10278238,4336.6,4336.5,0.7037]
[1760005205389,0.87258238,4336.6,4336.5,0.9349]
[1760005206287,0.45760238,4336.6,4336.5,1.34989]
[1760005206685,0.87258238,4336.6,4336.5,1.34989]
[1760005206892,0.00170238,4336.6,4336.5,1.34989]
[1760005208398,0.00170238,4336.6,4336.5,42.14989]
[1760005212202,0.41668238,4336.6,4336.5,42.14989]
[1760005212401,0.00170238,4336.6,4336.5,42.14989]
[1760005216905,0.41668238,4336.6,4336.5,42.14989]
[1760005217502,0.41493,4337.2,4337.1,1.21233]
[1760005217899,1.10099,4337.6,4337.5,0.4767]
[1760005218204,1.10099,4337.6,4337.5,0.3441]
[1760005218502,1.10361638,4337.6,4337.5,0.34664991]
[1760005219396,1.10361638,4337.6,4337.5,0.47924991]
[1760005219598,6.10361638,4337.6,4337.5,0.00254991]
[1760005220604,9.14341379,4337.6,4337.5,0.00254991]
[1760005221499,9.14341379,4337.6,4337.5,0.34664991]
[1760005222198,3.49832379,4337.6,4337.5,0.70134991]
[1760005222403,4.14421379,4337.6,4337.5,0.93254991]
[1760005222803,0.87341638,4337.6,4337.5,0.93254991]
[1760005223001,0.00262638,4337.6,4337.5,1.34743991]
[1760005224207,0.00262638,4337.6,4337.5,4.55523991]
[1760005226607,0.00262638,4337.6,4337.5,6.21166565]
[1760005227003,0.41485,4338.0,4337.9,0.63694]
[1760005227208,0.41485,4338.0,4337.9,1.21224]
[1760005227500,0.64581,4338.4,4338.3,0.4533]
[1760005227707,1.03691,4338.9,4338.3,0.4533]
[1760005228008,3.62552884,4338.5,4338.4,1.21221]
[1760005228306,0.41772884,4338.5,4338.4,1.21221]
[1760005228499,0.64062884,4338.5,4338.4,0.7974]
[1760005229708,0.00292884,4338.5,4338.4,1.21221]
[1760005231005,0.41772884,4338.5,4338.4,1.21221]
[1760005231905,0.00292884,4338.5,4338.4,1.21221]
[1760005233996,0.00292884,4338.5,4338.4,6.21221]
[1760005234202,0.1843,4339.1,4339.0,1.35375]
[1760005234402,0.1843,4339.1,4339.0,4.56155]
[1760005234605,0.4147,4339.5,4339.4,0.87991]
[1760005234796,0.4147,4339.5,4339.4,1.22311]
[1760005235204,0.41722284,4339.5,4339.4,1.22311]
[1760005235403,0.00252284,4339.5,4339.4,1.22311]
[1760005235604,0.41722284,4339.5,4339.4,1.22311]
[1760005236105,0.86442284,4339.5,4339.4,0.8084]
[1760005242012,0.86442284,4339.5,4339.4,1.22311]
[1760005242524,0.63212284,4339.5,4339.4,1.22311]
[1760005243915,0.21742284,4339.5,4339.4,1.22311]
[1760005245210,0.63212284,4339.5,4339.4,1.22311]
[1760005245415,0.00252284,4339.5,4339.4,1.22311]
[1760005246512,0.00252284,4339.5,4339.4,42.02311]
[1760005249209,0.00252284,4339.5,4339.4,42.25411]
[1760005250519,0.1843,4340.0,4339.4,42.25411]
[1760005250520,0.1843,4340.0,4339.9,1.18997]
[1760005250718,0.1843,4340.0,4339.9,4.39777]
[1760005250920,3.6707,4340.7,4340.6,0.7753]
[1760005251120,3.8847,4340.7,4340.6,0.7753]
[1760005251315,4.29929,4340.7,4340.6,0.7753]
[1760005251515,4.3022812,4340.7,4340.6,0.77767687]
[1760005251715,4.5320812,4340.7,4340.6,0.56037687]
[1760005252818,4.3022812,4340.7,4340.6,0.77767687]
[1760005253019,3.8572812,4340.7,4340.6,1.19227687]
[1760005253523,3.2107912,4340.7,4340.6,1.19227687]
[1760005254316,0.0029912,4340.7,4340.6,1.19227687]
[1760005257224,0.1842,4341.1,4341.0,1.32086]
[1760005257418,0.1842,4341.1,4341.0,4.52866]
[1760005257823,0.1842,4341.1,4341.0,45.32866]
[1760005258218,0.1871882,4341.1,4341.0,45.32866]
[1760005258419,0.0029882,4341.1,4341.0,45.32866]
[1760005258723,0.85809,4341.7,4341.6,0.223]
[1760005259021,0.85809,4341.7,4341.6,0.5574]
[1760005259616,0.86060847,4341.7,4341.6,0.5574]
[1760005260219,0.86060847,4341.7,4341.6,0.776]
[1760005260519,1.09020847,4341.7,4341.6,0.5574]
[1760005261320,0.86060847,4341.7,4341.6,0.5574]
[1760005264823,0.86060847,4341.7,4341.6,0.776]
[1760005265019,0.41700847,4341.7,4341.6,1.1905]
[1760005265220,0.44611847,4341.7,4341.0,44.3698]
[1760005265429,0.62584,4341.2,4341.1,0.776]
[1760005269628,0.41454,4341.2,4341.1,0.776]
[1760005269828,0.41454,4341.2,4341.1,1.19055]
[1760005270130,0.00251847,4341.7,4341.6,0.776]
[1760005270131,0.23351847,4341.7,4341.6,0.776]
[1760005270330,0.85930847,4341.7,4341.6,0.776]
[1760005271520,0.62830847,4341.7,4341.6,0.776]
[1760005272933,1.09020847,4341.7,4341.6,0.3344]
[1760005273629,1.09020847,4341.7,4341.6,0.5574]
[1760005275729,0.62581,4341.5,4341.4,0.023]
[1760005275932,1.08771,4341.5,4341.4,0.3574]
[1760005276131,1.08771,4341.5,4341.4,0.3344]
[1760005278831,1.31871,4341.5,4341.4,0.3344]
[1760005279329,0.85815,4341.1,4341.0,4.1148]
[1760005280437,1.08915,4341.1,4341.0,4.1148]
[1760005281034,0.85685,4341.1,4341.0,4.52936]
[1760005281236,0.231,4341.1,4341.0,4.52936]
[1760005281440,3.21031847,4341.7,4341.6,0.7743]
[1760005281441,3.42991847,4341.7,4341.6,0.7743]
[1760005281634,0.63660847,4341.7,4341.6,0.7743]
[1760005282940,0.85920847,4341.7,4341.6,0.7743]
[1760005283236,1.08890847,4341.7,4341.6,0.7743]
[1760005283942,0.85920847,4341.7,4341.6,0.7743]
[1760005284646,0.85920847,4341.7,4341.6,0.547]
[1760005284856,1.08890847,4341.7,4341.6,0.547]
[1760005285855,0.85920847,4341.7,4341.6,0.547]
[1760005286346,0.00251847,4341.7,4341.6,1.1888]
[1760005286552,0.00251847,4341.7,4341.6,2.84522574]
[1760005287748,0.00251847,4341.7,4341.6,1.1888]
[1760005288548,0.00251847,4341.7,4341.6,1.4198]
[1760005289057,0.00251847,4341.7,4341.6,6.4198]
[1760005289252,0.1842,4341.9,4341.8,1.19138]
[1760005289657,0.41442,4342.5,4342.4,1.19132]
[1760005289957,0.64472,4342.5,4342.4,0.7769]
[1760005290151,0.64638692,4342.5,4342.4,0.7769]
[1760005291259,1.10158692,4342.5,4342.4,0.7769]
[1760005291557,1.10158692,4342.5,4342.4,0.5555]
[1760005291759,0.64405,4342.2,4342.1,44.3324]
[1760005292053,1.09995,4342.2,4342.1,3.7633]
[1760005292247,0.87035,4342.2,4342.1,3.7633]
[1760005293755,1.09995,4342.2,4342.1,0.5555]
[1760005294053,1.09995,4342.2,4341.5,4.99191796]
[1760005294259,0.6448,4341.6,4341.5,4.113]
[1760005294656,0.6448,4341.6,4341.5,5.76881796]
[1760005294657,0.8704,4341.6,4341.5,5.76881796]
[1760005295356,0.8704,4341.6,4341.5,4.113]
[1760005295560,1.1,4341.6,4341.5,4.113]
[1760005295760,1.1,4341.6,4341.5,3.8916]
[1760005296061,1.1,4341.6,4341.5,3.6607]
[1760005296355,0.41453,4341.3,4341.1,1.65581796]
[1760005296563,1.10006,4341.0,4340.9,5.41911796]
[1760005296858,1.10006,4341.0,4340.9,3.5324]
[1760005297059,1.10006,4341.0,4340.6,0.32697687]
[1760005297459,0.6855,4340.9,4340.8,0.3476]
[1760005297858,0.6855,4340.9,4340.8,0.3246]
[1760005298461,0.6855,4340.9,4340.8,0.5555]
[1760005299660,0.6855,4340.9,4340.8,0.3246]
[1760005301861,0.8704,4341.6,4341.5,0.6777]
[1760005302067,0.6448,4341.6,4341.5,0.9086]
[1760005303357,0.8704,4341.6,4341.5,0.9086]
[1760005303558,0.41455,4341.1,4341.0,0.1317]
[1760005303763,0.87045,4341.1,4341.0,0.99856]
[1760005304164,0.87045,4341.1,4341.0,0.9086]
[1760005305165,0.64485,4341.1,4341.0,1.32316]
[1760005306070,0.2303,4341.1,4341.0,1.32316]
[1760005306271,3.62229,4341.7,4341.6,0.7613]
[1760005306564,1.08299,4341.7,4341.6,0.7613]
[1760005307569,1.31269,4341.7,4341.6,0.3163]
[1760005308572,1.31269,4341.7,4341.6,0.5487]
[1760005309473,1.08169,4341.7,4341.6,0.5487]
[1760005309671,1.31269,4341.7,4341.6,0.5487]
[1760005310873,0.63715,4341.1,4341.0,0.5767]
[1760005311175,0.85205,4341.1,4341.0,0.5767]
[1760005311479,0.85205,4341.1,4341.0,0.893]
[1760005312073,1.08175,4341.1,4341.0,0.893]
[1760005312574,0.85205,4341.1,4341.0,0.893]
[1760005314578,1.08175,4341.1,4341.0,0.3163]
[1760005315078,1.08175,4341.1,4340.8,0.023]
[1760005315079,1.08177,4340.9,4340.8,0.3393]
[1760005315379,1.31277,4340.9,4340.8,0.3393]
[1760005315878,1.31277,4340.9,4340.8,0.3163]
[1760005316377,1.08179,4340.7,4340.6,0.31867687]
[1760005316678,1.08179,4340.7,4340.6,0.00237687]
[1760005319179,0.76231,4340.5,4340.4,0.023]
[1760005319384,1.0939,4339.5,4339.4,0.3458]
[1760005319583,1.3249,4339.5,4339.4,0.3458]
[1760005319778,1.09392,4339.3,4339.2,3.5536]
[1760005320174,1.09567971,4339.3,4339.2,0.34859947]
[1760005320380,1.09567971,4339.3,4339.2,0.00279947]
[1760005321188,1.09567971,4339.3,4339.2,0.34859947]
[1760005321881,1.09567971,4339.3,4339.2,0.00279947]
[1760005322887,4.07282622,4339.3,4339.2,0.00279947]
[1760005324382,1.094,4338.5,4338.4,0.023]
[1760005324579,1.325,4338.5,4338.4,0.023]
[1760005324982,1.325,4338.5,4338.4,0.3688]
[1760005325383,1.325,4338.5,4338.4,0.34808166]
[1760005326186,1.44,4338.5,4338.4,0.00228166]
[1760005326384,4.40332855,4338.5,4338.4,0.00228166]
[1760005327193,1.09409,4337.6,4337.5,0.4744]
[1760005327388,1.32509,4337.6,4337.5,0.4744]
[1760005327595,1.32509,4337.6,4337.5,0.6899]
[1760005328292,1.32509,4337.6,4337.5,0.69267485]
[1760005328688,1.32509,4337.6,4337.5,0.34857485]
[1760005328894,1.32509,4337.6,4337.5,0.00277485]
[1760005332891,4.37509521,4337.6,4337.5,0.00277485]
[1760005334192,4.14409521,4337.6,4337.5,0.34857485]
[1760005334392,4.37509521,4337.6,4337.5,0.34857485]
[1760005334587,4.37509521,4337.6,4337.5,0.00277485]
[1760005337197,7.58289521,4337.6,4337.5,0.00277485]
[1760005342299,7.35189521,4337.6,4337.5,0.00277485]
[1760005342600,7.58289521,4337.6,4337.5,0.00277485]
[1760005347404,1.20294,4337.0,4336.9,0.023]
[1760005347604,1.43394,4337.0,4336.9,0.023]
[1760005347804,0.86487,4336.7,4336.4,0.3458]
[1760005348104,1.32237,4336.7,4336.4,0.7608]
[1760005348296,1.32237,4336.7,4336.6,3.20941652]
[1760005348506,1.32237,4336.7,4336.6,0.00161652]
[1760005349103,4.32651752,4336.7,4336.6,0.00161652]
[1760005359310,0.86487,4336.7,4336.6,0.78701652]
[1760005359612,0.64597,4336.7,4336.6,5.78701652]
[1760005360411,0.64597,4336.7,4336.6,6.20199652]
[1760005360608,0.85917,4336.7,4336.6,6.20199652]
[1760005361013,0.85917,4336.7,4336.6,5.78701652]
[1760005362415,1.07757,4336.7,4336.6,0.78701652]
[1760005363018,1.30537,4336.7,4336.6,0.78701652]
[1760005364111,1.07757,4336.7,4336.6,0.78701652]
[1760005366410,0.6626,4336.7,4336.6,1.20199652]
[1760005366614,0.85917,4336.7,4336.6,1.20199652]
[1760005368210,0.85917,4336.7,4336.6,0.78701652]
[1760005369119,1.07557,4336.7,4336.6,0.78701652]
[1760005370619,0.2132,4336.7,4336.6,1.20199652]
[1760005370814,0.9784,4337.1,4337.0,1.33364]
[1760005371021,1.2094,4337.1,4337.0,4.54144]
[1760005371218,0.231,4337.1,4337.0,4.54144]
[1760005371619,0.59932,4337.2,4337.1,1.20673]
[1760005371816,0.83032,4337.2,4337.1,1.20673]
[1760005372018,0.64592,4337.2,4337.1,1.20673]
[1760005372716,0.4149,4337.5,4337.4,1.2067]
[1760005375425,0.4149,4337.5,4337.4,0.7918]
[1760005375823,0.4149,4337.5,4337.4,1.2067]
[1760005379421,0.231,4337.7,4337.6,0.7676]
[1760005380223,0.64589,4337.7,4337.6,1.18249]
[1760005381828,0.231,4337.7,4337.6,1.18249]
[1760005382014,1.1406,4337.9,4337.8,1.18247]
[1760005382318,3.85363,4338.2,4338.0,0.41484]
[1760005382525,3.6585,4338.2,4338.1,0.7676]
[1760005382919,4.07333,4338.2,4338.1,0.7676]
[1760005383125,0.231,4338.2,4338.1,1.18244]
[1760005383325,0.64583,4338.2,4338.1,1.18244]
[1760005385828,0.64583,4338.2,4338.1,0.7676]
[1760005386129,0.86553,4338.2,4338.1,0.7676]
[1760005386426,0.64583,4338.2,4338.1,1.18244]
[1760005387626,0.41483,4338.2,4338.1,1.18244]
[1760005389330,0.63453,4338.2,4338.1,0.7676]
[1760005390128,0.63453,4338.2,4338.1,1.18244]
[1760005390630,0.41483,4338.2,4338.1,1.18244]
[1760005390930,0.1843,4338.4,4338.3,0.7676]
[1760005391231,0.41481,4338.4,4338.3,1.18242]
[1760005392225,3.2078,4338.7,4338.6,0.7676]
[1760005392529,0.41475,4339.0,4338.9,0.7676]
[1760005392728,0.64575,4339.0,4338.9,0.7676]
[1760005394426,1.66447971,4339.3,4339.2,0.86223]
[1760005394626,1.89547971,4339.3,4339.2,1.18233]
[1760005394827,1.89547971,4339.3,4339.2,0.7676]
[1760005395125,2.11517971,4339.3,4339.2,0.7676]
[1760005395528,2.33347971,4339.3,4339.2,0.7676]
[1760005395726,0.438,4339.1,4339.0,0.3201]
[1760005395928,1.07968,4338.7,4338.6,0.5588]
[1760005396132,0.85278,4338.7,4338.6,0.5588]
[1760005396432,0.85278,4338.7,4338.6,0.7676]
[1760005397133,1.07968,4338.7,4338.6,0.5358]
[1760005397931,1.07968,4338.7,4338.6,0.3201]
[1760005399534,3.2078,4339.2,4339.0,0.1399]
[1760005399736,1.08374,4339.1,4339.0,0.6757]
[1760005400035,4.29012808,4339.1,4339.0,0.6757]
[1760005400236,1.31064,4339.1,4339.0,0.6757]
[1760005400436,1.31064,4339.1,4339.0,0.3201]
[1760005404936,0.41478,4338.7,4338.6,3.5279]
[1760005405141,1.07968,4338.7,4338.6,0.3201]
[1760005405940,1.07968,4338.7,4338.6,0.5358]
[1760005407846,1.07968,4338.7,4338.6,0.3201]
[1760005408049,1.1941,4338.5,4338.4,0.023]
[1760005408345,0.41481,4338.4,4338.3,1.014]
[1760005408551,1.07221,4338.4,4338.3,1.3502]
[1760005408748,1.07221,4338.4,4338.0,0.1289]
[1760005408749,1.07224,4338.1,4338.0,0.3362]
[1760005409052,1.30324,4338.1,4338.0,0.3362]
[1760005412445,1.30324,4338.1,4337.8,1.4631]
[1760005412446,0.2273,4338.0,4337.8,1.4631]
[1760005412654,1.07226,4337.9,4337.8,1.1269]
[1760005412849,4.04843438,4337.9,4337.8,1.1269]
[1760005414452,4.04843438,4337.9,4337.8,1.1039]
[1760005414653,9.04843438,4337.9,4337.8,2.7e-07]
[1760005415150,1.07234,4337.0,4336.9,3.544]
[1760005415349,1.30334,4337.0,4336.9,3.544]
[1760005416152,0.63344,4337.0,4336.9,4.0093]
[1760005416352,0.64594,4337.0,4336.9,4.0093]
[1760005418049,0.41489,4337.5,4337.4,0.8015]
[1760005418251,0.63336,4337.9,4337.8,0.8015]
[1760005418445,0.86436,4337.9,4337.8,0.8015]
[1760005418650,1.30326,4337.9,4337.8,0.5682]
[1760005420353,1.07596,4337.9,4337.8,0.5682]
[1760005420859,1.07596,4337.9,4337.8,0.8015]
[1760005425760,0.86436,4337.9,4337.8,0.8015]
[1760005426859,0.8634,4338.0,4337.5,3.75159]
[1760005426860,0.8634,4338.0,4337.9,1.18646]
[1760005427167,1.27825,4338.0,4337.9,1.18646]
[1760005429665,1.49215,4338.0,4337.9,1.18646]
[1760005429962,1.72265,4338.0,4337.9,0.7716]
[1760005430164,2.18105,4338.0,4337.9,0.3417]
[1760005437171,2.18105,4338.0,4337.9,0.5604]
[1760005444578,2.18105,4338.0,4337.9,0.3417]
[1760005444975,0.8634,4338.0,4337.9,1.20656]
[1760005445275,0.8634,4338.0,4337.9,0.7917]
[1760005445779,0.8634,4338.0,4337.9,1.20656]
[1760005447380,0.8634,4338.0,4337.9,0.7917]
[1760005448379,1.0751,4338.0,4337.9,0.7917]
[1760005448781,1.2968,4338.0,4337.9,0.7917]
[1760005449387,1.2968,4338.0,4337.9,2.4486548]
[1760005449587,1.2968,4338.0,4337.9,0.7917]
[1760005450087,1.2968,4338.0,4337.9,2.4486548]
[1760005451082,0.8634,4338.0,4337.9,2.4486548]
[1760005451282,0.41477,4338.8,4338.7,0.3393]
[1760005451483,0.41477,4338.8,4338.7,0.7893]
[1760005451681,0.62647,4338.8,4338.7,0.7893]
[1760005452990,0.41477,4338.8,4338.7,0.7893]
[1760005454691,0.41477,4338.8,4338.7,1.20408]
[1760005456590,0.41477,4338.8,4338.7,0.7893]
[1760005457598,0.62647,4338.8,4338.7,0.7893]
[1760005458092,1.07557,4338.8,4338.7,0.5568]
[1760005458705,1.07557,4338.8,4338.7,0.3393]
[1760005458998,1.07559,4338.6,4338.5,0.3393]
[1760005459298,3.2078,4339.1,4339.0,0.128]
[1760005459498,1.0056,4339.2,4339.1,0.7893]
[1760005459796,0.4584,4340.1,4339.2,1.20403]
[1760005459999,0.4584,4340.1,4339.2,4.41183]
[1760005460192,0.4584,4340.1,4339.2,6.06546173]
[1760005460396,0.41468,4339.8,4339.2,6.06546173]
[1760005460695,0.41469,4339.7,4339.2,6.29646173]
[1760005460896,0.4147,4339.6,4339.2,6.29646173]
[1760005461296,0.4147,4339.6,4339.2,45.44283]
[1760005461297,1.7417,4339.6,4339.2,45.44283]
[1760005463200,0.41471,4339.5,4339.2,45.44283]
[1760005467102,0.41471,4339.5,4339.2,42.23503]
[1760005467297,0.41471,4339.5,4339.2,45.44283]
[1760005469299,0.41647971,4339.3,4339.2,41.5893]
[1760005469499,1.09737971,4339.3,4339.2,0.5568]
[1760005469896,0.87017971,4339.3,4339.2,0.5568]
[1760005470402,1.09737971,4339.3,4339.2,0.5568]
[1760005475606,0.41473,4339.2,4339.1,0.1694]
[1760005475799,1.20815,4339.0,4338.9,0.023]
[1760005476110,0.86853,4338.2,4338.1,3.5567]
[1760005476305,0.4537,4337.8,4337.7,1.88513173]
[1760005476608,0.86857,4337.8,4337.7,0.5804]
[1760005477597,0.86857,4337.8,4337.7,0.8109]
[1760005481616,0.86857,4337.8,4337.7,1.22578]
[1760005481818,0.63577,4337.8,4337.7,1.22578]
[1760005483418,0.41487,4337.8,4337.7,1.22578]
[1760005487019,0.41485,4338.0,4337.9,0.7786]
[1760005488320,1.08695,4338.0,4337.9,0.7786]
[1760005488508,1.08695,4338.0,4337.9,0.5451]
[1760005489015,0.41489,4337.6,4337.5,0.023]
[1760005489222,1.31799,4337.6,4337.5,0.023]
[1760005489516,1.31799,4337.6,4336.6,3.20941652]
[1760005489517,0.4446,4336.9,4336.8,0.3334]
[1760005489712,0.6721,4336.9,4336.8,0.3334]
[1760005491616,0.4446,4336.9,4336.8,0.7786]
[1760005491911,0.6721,4336.9,4336.8,0.7786]
[1760005492114,0.4446,4336.9,4336.8,0.7786]
[1760005495820,0.85955,4336.9,4336.8,0.7786]
[1760005497415,1.08705,4336.9,4336.8,0.7786]
[1760005499722,0.85955,4336.9,4336.8,0.7786]
[1760005502327,1.08715,4336.9,4336.8,0.5451]
[1760005503323,1.08715,4336.9,4336.8,0.3334]
[1760005504021,0.85087,4336.7,4336.6,0.34751652]
[1760005504323,1.30947,4336.7,4336.6,0.00161652]
[1760005504527,9.37394547,4336.7,4336.6,0.00161652]
[1760005505523,0.64264,4336.0,4335.9,40.8]
[1760005505715,0.64264,4336.0,4335.6,3.2078]
[1760005505716,1.07857,4335.7,4335.6,3.2078]
[1760005505917,1.07862,4335.1,4335.0,3.5307]
[1760005506118,1.30962,4335.1,4335.0,3.8767]
[1760005506525,1.31143518,4335.1,4335.0,3.87927173]
[1760005506827,1.31143518,4335.1,4335.0,0.00257173]
[1760005511527,4.25939774,4335.1,4335.0,0.00257173]
[1760005512123,9.25939774,4335.1,4335.0,0.00257173]
[1760005512325,9.25939774,4335.1,4334.8,0.023]
[1760005512525,1.07872,4334.1,4334.0,25.6689]
[1760005512731,1.30972,4334.1,4334.0,25.6689]
[1760005513425,1.30972,4334.1,4334.0,25.67176984]
[1760005517133,4.51752,4334.1,4334.0,24.83958528]
[1760005518234,9.51752,4334.1,4334.0,23.32974301]
[1760005518528,12.27349752,4334.1,4334.0,20.39850301]
[1760005518733,12.27349752,4334.1,4334.0,19.87085301]
[1760005518931,12.27349752,4334.1,4334.0,18.17039301]
[1760005519131,11.83759752,4334.1,4334.0,14.00920301]
[1760005519328,11.83759752,4334.1,4334.0,12.75052301]
[1760005519730,11.83759752,4334.1,4334.0,11.99654301]
[1760005519931,11.83759752,4334.1,4334.0,10.42280301]
[1760005520133,11.83759752,4334.1,4334.0,8.7415889]
[1760005520331,11.83759752,4334.1,4334.0,4.60869255]
[1760005520630,12.34513075,4334.1,4334.0,2.30101445]
[1760005520825,12.34513075,4334.1,4334.0,4.45e-06]
[1760005521027,0.41538,4332.4,4332.3,3.0193495]
[1760005521232,0.31541,4332.1,4332.0,0.5683]
[1760005521430,0.54641,4332.1,4332.0,0.5683]
[1760005521631,3.48007373,4332.1,4332.0,0.5683]
[1760005521825,3.48007373,4332.1,4332.0,0.57073019]
[1760005522030,0.231,4332.1,4332.0,0.57073019]
[1760005522232,3.2078,4332.4,4332.0,0.57073019]
[1760005522432,0.231,4332.3,4332.0,0.57073019]
[1760005522633,0.41541,4332.2,4332.0,0.57073019]
[1760005523032,0.231,4332.1,4332.0,0.89363019]
[1760005523232,0.41541,4332.2,4332.1,0.7575]
[1760005523538,3.69589029,4332.2,4332.1,0.7575]
[1760005523838,0.64641,4332.2,4332.1,0.7575]
[1760005524241,0.41541,4332.2,4332.1,0.7575]
[1760005524737,0.64641,4332.2,4332.1,0.7575]
[1760005525337,0.41541,4332.2,4332.1,0.7575]
[1760005525538,0.64641,4332.2,4332.1,0.7575]
[1760005526237,8.63551142,4332.2,4332.1,1.32e-06]
[1760005526739,0.41546,4331.6,4331.5,0.1337]
[1760005526935,0.41548,4331.4,4331.3,0.0086]
[1760005527137,0.41548,4331.4,4330.0,0.1337]
[1760005527138,0.41556,4330.6,4330.0,0.1337]